[Event "Live Chess"]
[Site "Chess.com"]
[Date "2024.06.02"]
[Round "-"]
[White "NottheBishopSacrifice"]
[Black "TigerTank70"]
[Result "1-0"]
[WhiteElo "2341"]
[BlackElo "2175"]
[TimeControl "300"]
[EndTime "8:22:49 PDT"]
[Termination "NottheBishopSacrifice won by resignation"]

1. d4 {[%clk 0:04:58.2]} 1... d5 {[%clk 0:04:57]} 2. Nf3 {[%clk 0:04:57.7]} 2...
c5 {[%clk 0:04:55.2]} 3. e3 {[%clk 0:04:57]} 3... e6 {[%clk 0:04:53.9]} 4. Nbd2
{[%clk 0:04:56.5]} 4... Nf6 {[%clk 0:04:52.6]} 5. a3 {[%clk 0:04:55.5]} 5... Qb6
{[%clk 0:04:51.6]} 6. dxc5 {[%clk 0:04:54.2]} 6... Bxc5 {[%clk 0:04:46.8]} 7. c4
{[%clk 0:04:52.3]} 7... d4 {[%clk 0:04:42.4]} 8. exd4 {[%clk 0:04:50.5]} 8...
Bxd4 {[%clk 0:04:40]} 9. Nxd4 {[%clk 0:04:50.1]} 9... Qxd4 {[%clk 0:04:37.9]}
10. Nf3 {[%clk 0:04:49.7]} 10... Qxd1+ {[%clk 0:04:35]} 11. Kxd1 {[%clk
0:04:49.6]} 11... O-O {[%clk 0:04:32.4]} 12. Be3 {[%clk 0:04:48.5]} 12... Nc6
{[%clk 0:04:31.4]} 13. Kc2 {[%clk 0:04:47.3]} 13... e5 {[%clk 0:04:30.4]} 14.
Nd2 {[%clk 0:04:40.6]} 14... Bf5+ {[%clk 0:04:27.1]} 15. Bd3 {[%clk 0:04:38.8]}
15... e4 {[%clk 0:04:19.7]} 16. Be2 {[%clk 0:04:35.7]} 16... Rad8 {[%clk
0:04:17.4]} 17. Rhd1 {[%clk 0:04:32.6]} 17... Rfe8 {[%clk 0:04:10.8]} 18. Nb3
{[%clk 0:04:29.9]} 18... Ng4 {[%clk 0:04:04.3]} 19. h3 {[%clk 0:04:23.9]} 19...
Nxe3+ {[%clk 0:03:59.2]} 20. fxe3 {[%clk 0:04:23.8]} 20... Be6 {[%clk
0:03:55.1]} 21. Rxd8 {[%clk 0:04:22.1]} 21... Rxd8 {[%clk 0:03:52.8]} 22. Rd1
{[%clk 0:04:21.6]} 22... Rxd1 {[%clk 0:03:47.8]} 23. Kxd1 {[%clk 0:04:21.5]}
23... Ne5 {[%clk 0:03:46.7]} 24. Nd2 {[%clk 0:04:19.2]} 24... f5 {[%clk
0:03:43.9]} 25. Kc2 {[%clk 0:04:18.7]} 25... b6 {[%clk 0:03:41.6]} 26. Kc3
{[%clk 0:04:17.7]} 26... Kf7 {[%clk 0:03:37.6]} 27. b4 {[%clk 0:04:17.1]} 27...
Ke7 {[%clk 0:03:35.8]} 28. c5 {[%clk 0:04:15.4]} 28... bxc5 {[%clk 0:03:32.4]}
29. bxc5 {[%clk 0:04:15.3]} 29... Kd7 {[%clk 0:03:30]} 30. Bb5+ {[%clk
0:04:12.2]} 30... Kc7 {[%clk 0:03:29.3]} 31. Kd4 {[%clk 0:04:10.4]} 31... Nf7
{[%clk 0:03:14]} 32. Bc4 {[%clk 0:04:07.1]} 32... Bxc4 {[%clk 0:03:05.4]} 33.
Nxc4 {[%clk 0:04:07]} 33... g5 {[%clk 0:02:59.5]} 34. Ne5 {[%clk 0:03:58.7]}
34... Nd8 {[%clk 0:02:53.9]} 35. Kd5 {[%clk 0:03:55.8]} 35... h6 {[%clk
0:02:45.8]} 36. g3 {[%clk 0:03:53.9]} 36... h5 {[%clk 0:02:39.2]} 37. h4 {[%clk
0:03:52.3]} 37... gxh4 {[%clk 0:02:25.4]} 38. gxh4 {[%clk 0:03:51.6]} 38... Nb7
{[%clk 0:02:22.1]} 39. Ng6 {[%clk 0:03:48.3]} 39... Na5 {[%clk 0:01:58.1]} 40.
Nf4 {[%clk 0:03:43.4]} 40... Nb3 {[%clk 0:01:41.3]} 41. Nxh5 {[%clk 0:03:39.4]}
41... Nd2 {[%clk 0:01:37.9]} 42. Ng3 {[%clk 0:03:36]} 42... f4 {[%clk
0:01:17.2]} 43. exf4 {[%clk 0:03:33.7]} 43... e3 {[%clk 0:01:14.4]} 44. Ne2
{[%clk 0:03:32]} 1-0

[Event "Live Chess"]
[Site "Chess.com"]
[Date "2024.06.02"]
[Round "-"]
[White "friarnator"]
[Black "NAZRIZ1977"]
[Result "1-0"]
[WhiteElo "2209"]
[BlackElo "2072"]
[TimeControl "300"]
[EndTime "8:22:49 PDT"]
[Termination "friarnator won by resignation"]

1. d4 {[%clk 0:04:57.4]} 1... d5 {[%clk 0:04:56.3]} 2. Nf3 {[%clk 0:04:56.5]}
2... e6 {[%clk 0:04:55.2]} 3. Bf4 {[%clk 0:04:55.7]} 3... f5 {[%clk 0:04:54.6]}
4. e3 {[%clk 0:04:54.9]} 4... Nf6 {[%clk 0:04:54.1]} 5. h3 {[%clk 0:04:53.5]}
5... Bd6 {[%clk 0:04:53.4]} 6. Bd3 {[%clk 0:04:51.8]} 6... O-O {[%clk
0:04:52.8]} 7. Nbd2 {[%clk 0:04:49.6]} 7... c6 {[%clk 0:04:52.3]} 8. Ne5 {[%clk
0:04:48.7]} 8... Ne4 {[%clk 0:04:51.7]} 9. f3 {[%clk 0:04:46.2]} 9... Qh4+
{[%clk 0:04:47.5]} 10. g3 {[%clk 0:04:37.5]} 10... Nxg3 {[%clk 0:04:46.4]} 11.
Bxg3 {[%clk 0:04:34.7]} 11... Qxg3+ {[%clk 0:04:45.3]} 12. Kf1 {[%clk
0:04:33.6]} 12... Bxe5 {[%clk 0:04:44.4]} 13. dxe5 {[%clk 0:04:32.8]} 13... Qxe5
{[%clk 0:04:43.8]} 14. Qe2 {[%clk 0:04:27.8]} 14... Qxb2 {[%clk 0:04:39.8]} 15.
Kf2 {[%clk 0:04:27.1]} 15... Nd7 {[%clk 0:04:36.1]} 16. Rag1 {[%clk 0:04:26.2]}
16... Qf6 {[%clk 0:04:29.9]} 17. f4 {[%clk 0:04:24.6]} 17... Qh4+ {[%clk
0:04:28.6]} 18. Kf1 {[%clk 0:04:23]} 18... Nf6 {[%clk 0:04:24.9]} 19. Qg2 {[%clk
0:04:21]} 19... Rf7 {[%clk 0:04:18.9]} 20. Nf3 {[%clk 0:04:19.8]} 20... Qh6
{[%clk 0:04:11.3]} 21. Ne5 {[%clk 0:04:09.3]} 21... Re7 {[%clk 0:04:04.2]} 22.
Qg3 {[%clk 0:03:57.2]} 22... Bd7 {[%clk 0:03:55.4]} 23. Rh2 {[%clk 0:03:56.2]}
23... Nh5 {[%clk 0:03:50.7]} 24. Qh4 {[%clk 0:03:51.5]} 24... Rae8 {[%clk
0:03:45.3]} 25. Be2 {[%clk 0:03:43.1]} 25... Ng3+ {[%clk 0:03:12.6]} 26. Qxg3
{[%clk 0:03:40.8]} 26... Kh8 {[%clk 0:03:12.2]} 27. Rhg2 {[%clk 0:03:34.7]} 1-0

[Event "Live Chess"]
[Site "Chess.com"]
[Date "2024.06.02"]
[Round "-"]
[White "silunn"]
[Black "ukraineZelensky"]
[Result "1-0"]
[WhiteElo "2067"]
[BlackElo "1315"]
[TimeControl "300"]
[EndTime "8:23:13 PDT"]
[Termination "silunn won by resignation"]

1. e4 {[%clk 0:04:58.3]} 1... e5 {[%clk 0:04:55.7]} 2. Nf3 {[%clk 0:04:55.1]}
2... d6 {[%clk 0:04:53.4]} 3. Bc4 {[%clk 0:04:52.8]} 3... Be7 {[%clk 0:04:46.8]}
4. c3 {[%clk 0:04:44.5]} 4... Nc6 {[%clk 0:04:38.3]} 5. h3 {[%clk 0:04:31.6]}
5... Nf6 {[%clk 0:04:35.6]} 6. d3 {[%clk 0:04:19.1]} 6... h6 {[%clk 0:04:29.4]}
7. Nbd2 {[%clk 0:04:15.1]} 7... O-O {[%clk 0:04:27.5]} 8. O-O {[%clk 0:04:13]}
8... a6 {[%clk 0:04:23.9]} 9. a4 {[%clk 0:04:10.3]} 9... Bd7 {[%clk 0:04:19.6]}
10. a5 {[%clk 0:04:03.5]} 10... Qc8 {[%clk 0:04:16.4]} 11. Nh2 {[%clk
0:03:55.9]} 11... Be6 {[%clk 0:04:10.3]} 12. f4 {[%clk 0:03:44.2]} 12... Bxc4
{[%clk 0:04:07.1]} 13. Nxc4 {[%clk 0:03:43.3]} 13... exf4 {[%clk 0:04:05.1]} 14.
Bxf4 {[%clk 0:03:38.9]} 14... Qe6 {[%clk 0:03:57]} 15. Ne3 {[%clk 0:03:34.9]}
15... Ne5 {[%clk 0:03:46.3]} 16. Nf5 {[%clk 0:03:12.9]} 16... Ng6 {[%clk
0:03:33.1]} 17. Bd2 {[%clk 0:02:29.5]} 17... Bd8 {[%clk 0:03:18.6]} 18. Nf3
{[%clk 0:02:13.2]} 18... d5 {[%clk 0:03:04.1]} 19. N3d4 {[%clk 0:02:07.4]} 19...
Qd7 {[%clk 0:02:50.5]} 20. exd5 {[%clk 0:01:29.7]} 20... Qxd5 {[%clk 0:02:38.9]}
21. c4 {[%clk 0:01:06]} 21... Qe5 {[%clk 0:02:20.5]} 22. Bc3 {[%clk 0:00:53.4]}
22... Qg3 {[%clk 0:02:11.4]} 23. Nxg3 {[%clk 0:00:50.8]} 23... Be7 {[%clk
0:01:52.9]} 24. Ndf5 {[%clk 0:00:48.9]} 24... Bc5+ {[%clk 0:01:49]} 25. d4
{[%clk 0:00:47.6]} 25... Bd6 {[%clk 0:01:43]} 26. Nxd6 {[%clk 0:00:44.1]} 26...
cxd6 {[%clk 0:01:41]} 27. Rxf6 {[%clk 0:00:41.2]} 27... gxf6 {[%clk 0:01:38.7]}
28. Nf5 {[%clk 0:00:40.6]} 28... Kh7 {[%clk 0:01:33.9]} 29. Qh5 {[%clk
0:00:39.1]} 1-0

[Event "Live Chess"]
[Site "Chess.com"]
[Date "2024.06.02"]
[Round "-"]
[White "kylet1990"]
[Black "TheSmoulderingMaster"]
[Result "0-1"]
[WhiteElo "782"]
[BlackElo "1775"]
[TimeControl "300"]
[EndTime "8:23:20 PDT"]
[Termination "TheSmoulderingMaster won by resignation"]

1. e4 {[%clk 0:04:58.9]} 1... c5 {[%clk 0:04:57.7]} 2. Bc4 {[%clk 0:04:56.9]}
2... e6 {[%clk 0:04:56.8]} 3. Nc3 {[%clk 0:04:54.6]} 3... Nc6 {[%clk 0:04:55.9]}
4. d3 {[%clk 0:04:53.2]} 4... Nf6 {[%clk 0:04:55.1]} 5. Nf3 {[%clk 0:04:48.9]}
5... d5 {[%clk 0:04:54.1]} 6. exd5 {[%clk 0:04:47.2]} 6... exd5 {[%clk
0:04:53.4]} 7. Nb5 {[%clk 0:04:46.1]} 7... a6 {[%clk 0:04:51.6]} 8. Qe2+ {[%clk
0:04:31.4]} 8... Be7 {[%clk 0:04:48.4]} 9. Nd6+ {[%clk 0:04:27.1]} 9... Qxd6
{[%clk 0:04:45.6]} 10. Bxd5 {[%clk 0:04:21.5]} 10... Nxd5 {[%clk 0:04:43]} 11.
O-O {[%clk 0:04:19.4]} 11... O-O {[%clk 0:04:40.9]} 0-1

[Event "Live Chess"]
[Site "Chess.com"]
[Date "2024.06.02"]
[Round "-"]
[White "Purple1szed"]
[Black "PhilMaybury64"]
[Result "0-1"]
[WhiteElo "1991"]
[BlackElo "1452"]
[TimeControl "300"]
[EndTime "8:23:33 PDT"]
[Termination "PhilMaybury64 won by resignation"]

1. e4 {[%clk 0:04:58.4]} 1... e5 {[%clk 0:04:58.3]} 2. Nf3 {[%clk 0:04:57.6]}
2... d6 {[%clk 0:04:57.1]} 3. d4 {[%clk 0:04:56.7]} 3... Bg4 {[%clk 0:04:55.9]}
4. dxe5 {[%clk 0:04:55.6]} 4... Nd7 {[%clk 0:04:54.8]} 5. exd6 {[%clk
0:04:54.5]} 5... Bxd6 {[%clk 0:04:52.1]} 6. Nc3 {[%clk 0:04:52.7]} 6... Qe7
{[%clk 0:04:49.9]} 7. Bd3 {[%clk 0:04:51.6]} 7... Ngf6 {[%clk 0:04:46.9]} 8. h3
{[%clk 0:04:50.2]} 8... Bh5 {[%clk 0:04:45]} 9. O-O {[%clk 0:04:49.4]} 9...
O-O-O {[%clk 0:04:42.9]} 10. Re1 {[%clk 0:04:48.6]} 10... Ne5 {[%clk 0:04:39.9]}
11. Be2 {[%clk 0:04:46.7]} 11... Nxf3+ {[%clk 0:04:34.6]} 12. Bxf3 {[%clk
0:04:46.6]} 12... Bh2+ {[%clk 0:04:33.3]} 13. Kxh2 {[%clk 0:04:45.9]} 13... Rxd1
{[%clk 0:04:31.9]} 14. Bxd1 {[%clk 0:04:45.8]} 14... Bxd1 {[%clk 0:04:30.1]} 15.
Rxd1 {[%clk 0:04:45.7]} 15... Rd8 {[%clk 0:04:21.8]} 16. Bg5 {[%clk 0:04:41.5]}
16... h6 {[%clk 0:04:18.9]} 17. Bxf6 {[%clk 0:04:39]} 17... Qxf6 {[%clk
0:04:17.5]} 18. f3 {[%clk 0:04:18.9]} 18... g5 {[%clk 0:04:07.2]} 19. Rxd8+
{[%clk 0:04:17.1]} 19... Kxd8 {[%clk 0:04:05.5]} 20. Rd1+ {[%clk 0:04:17]} 20...
Kc8 {[%clk 0:04:01.7]} 21. Rd5 {[%clk 0:04:10.2]} 21... c6 {[%clk 0:03:53.6]}
22. Rf5 {[%clk 0:04:08.3]} 22... Qd6+ {[%clk 0:03:51.2]} 23. Kg1 {[%clk
0:03:59.1]} 23... Qd4+ {[%clk 0:03:45.4]} 24. Kf1 {[%clk 0:03:54.9]} 24... b5
{[%clk 0:03:28.5]} 25. Rxf7 {[%clk 0:03:44.8]} 25... Qc4+ {[%clk 0:03:26.4]} 0-1

[Event "Live Chess"]
[Site "Chess.com"]
[Date "2024.06.02"]
[Round "-"]
[White "Andysav3"]
[Black "bobby_jamesFischer86"]
[Result "1-0"]
[WhiteElo "1898"]
[BlackElo "1637"]
[TimeControl "300"]
[EndTime "8:23:44 PDT"]
[Termination "Andysav3 won on time"]

1. e4 {[%clk 0:04:57.8]} 1... c5 {[%clk 0:04:52.8]} 2. c3 {[%clk 0:04:56.5]}
2... Nc6 {[%clk 0:04:50.1]} 3. d4 {[%clk 0:04:55.5]} 3... cxd4 {[%clk
0:04:45.6]} 4. cxd4 {[%clk 0:04:54]} 4... d6 {[%clk 0:04:43.8]} 5. d5 {[%clk
0:04:49.7]} 5... Nb8 {[%clk 0:04:41.1]} 6. Nc3 {[%clk 0:04:43.8]} 6... a6 {[%clk
0:04:39.4]} 7. a4 {[%clk 0:04:40.6]} 7... Bd7 {[%clk 0:04:37.8]} 8. Nf3 {[%clk
0:04:34.5]} 8... Nf6 {[%clk 0:04:36.1]} 9. Nd4 {[%clk 0:04:28]} 9... g6 {[%clk
0:04:33.8]} 10. Bd3 {[%clk 0:04:21]} 10... Bg7 {[%clk 0:04:32.3]} 11. O-O {[%clk
0:04:11.7]} 11... O-O {[%clk 0:04:30.8]} 12. Bc2 {[%clk 0:03:59.7]} 12... Bg4
{[%clk 0:03:21.5]} 13. f3 {[%clk 0:03:54.4]} 13... Bd7 {[%clk 0:03:18.3]} 14.
Be3 {[%clk 0:03:47]} 14... Bc8 {[%clk 0:03:03.4]} 15. a5 {[%clk 0:03:38.3]}
15... Nbd7 {[%clk 0:02:43.7]} 16. f4 {[%clk 0:03:22]} 16... Nc5 {[%clk
0:02:36.6]} 17. Na4 {[%clk 0:02:50]} 17... Ncxe4 {[%clk 0:02:15.6]} 18. Nb6
{[%clk 0:02:48.3]} 18... Rb8 {[%clk 0:02:14.1]} 19. Qb1 {[%clk 0:02:37.2]} 19...
Nc5 {[%clk 0:02:08]} 20. b4 {[%clk 0:02:34.9]} 20... Ncd7 {[%clk 0:02:05.3]} 21.
Nf3 {[%clk 0:02:24.5]} 21... Ng4 {[%clk 0:01:57.2]} 22. Ra3 {[%clk 0:02:16.8]}
22... Nxe3 {[%clk 0:01:51.2]} 23. Rxe3 {[%clk 0:02:12.4]} 23... Nxb6 {[%clk
0:01:50.3]} 24. axb6 {[%clk 0:02:11.3]} 24... Qxb6 {[%clk 0:01:48.1]} 25. Re1
{[%clk 0:02:09.1]} 25... Bg4 {[%clk 0:01:44.5]} 26. Kh1 {[%clk 0:02:06.2]} 26...
Bxf3 {[%clk 0:01:38.7]} 27. Rxf3 {[%clk 0:02:04]} 27... Qc7 {[%clk 0:01:32.9]}
28. f5 {[%clk 0:01:58.8]} 28... Rbc8 {[%clk 0:01:31.2]} 29. Bd3 {[%clk
0:01:52.3]} 29... e6 {[%clk 0:01:09.1]} 30. dxe6 {[%clk 0:01:43.2]} 30... fxe6
{[%clk 0:01:01.5]} 31. Rxe6 {[%clk 0:01:32.8]} 31... Qc1+ {[%clk 0:00:59.2]} 32.
Rf1 {[%clk 0:01:26.4]} 32... Qxb1 {[%clk 0:00:57.5]} 33. Rxb1 {[%clk 0:01:25.3]}
33... gxf5 {[%clk 0:00:42.8]} 34. Rxd6 {[%clk 0:01:24.3]} 34... Rfd8 {[%clk
0:00:40.8]} 35. Rxd8+ {[%clk 0:01:21.8]} 35... Rxd8 {[%clk 0:00:36]} 36. Bxf5
{[%clk 0:01:19.8]} 36... b6 {[%clk 0:00:34.3]} 37. Be6+ {[%clk 0:01:15.8]} 37...
Kh8 {[%clk 0:00:32.8]} 38. g3 {[%clk 0:01:12.4]} 38... a5 {[%clk 0:00:29.9]} 39.
b5 {[%clk 0:01:04.4]} 39... Rd6 {[%clk 0:00:18.3]} 40. Rc1 {[%clk 0:00:57.3]}
40... Bd4 {[%clk 0:00:15.3]} 41. Rc8+ {[%clk 0:00:52.8]} 41... Kg7 {[%clk
0:00:14.4]} 42. Rc7+ {[%clk 0:00:51.8]} 42... Kf6 {[%clk 0:00:12.7]} 43. Bd7
{[%clk 0:00:48.1]} 43... Bc5 {[%clk 0:00:11.4]} 44. Ra7 {[%clk 0:00:43.2]} 44...
Rd2 {[%clk 0:00:09.8]} 45. Bc6 {[%clk 0:00:36.9]} 45... Kg5 {[%clk 0:00:08.3]}
46. Rxh7 {[%clk 0:00:21.9]} 46... Kg4 {[%clk 0:00:06.9]} 47. Rg7+ {[%clk
0:00:19.8]} 47... Kf5 {[%clk 0:00:05.9]} 48. Re7 {[%clk 0:00:18.2]} 48... Kg4
{[%clk 0:00:04.6]} 49. Bd7+ {[%clk 0:00:16.1]} 49... Kf3 {[%clk 0:00:03.5]} 50.
Rf7+ {[%clk 0:00:14.8]} 50... Ke2 {[%clk 0:00:01.5]} 51. Bg4+ {[%clk 0:00:13]}
51... Kd3 {[%clk 0:00:00.4]} 52. Rd7+ {[%clk 0:00:11.4]} 1-0

[Event "Live Chess"]
[Site "Chess.com"]
[Date "2024.06.02"]
[Round "-"]
[White "davigator"]
[Black "Ferrarifan27"]
[Result "1-0"]
[WhiteElo "2342"]
[BlackElo "2145"]
[TimeControl "300"]
[EndTime "8:24:00 PDT"]
[Termination "davigator won by resignation"]

1. e4 {[%clk 0:04:55.9]} 1... e5 {[%clk 0:04:57.9]} 2. Nf3 {[%clk 0:04:54.8]}
2... Nc6 {[%clk 0:04:54.1]} 3. Bc4 {[%clk 0:04:52.8]} 3... Bc5 {[%clk
0:04:51.8]} 4. c3 {[%clk 0:04:51.5]} 4... Nf6 {[%clk 0:04:50.2]} 5. d3 {[%clk
0:04:50.3]} 5... a6 {[%clk 0:04:46.7]} 6. O-O {[%clk 0:04:48.1]} 6... d6 {[%clk
0:04:43.5]} 7. h3 {[%clk 0:04:43.5]} 7... O-O {[%clk 0:04:41.3]} 8. a4 {[%clk
0:04:41.2]} 8... h6 {[%clk 0:04:34.8]} 9. Re1 {[%clk 0:04:41.1]} 9... Qe7 {[%clk
0:04:33.2]} 10. Nbd2 {[%clk 0:04:39]} 10... Be6 {[%clk 0:04:31.4]} 11. a5 {[%clk
0:04:36.3]} 11... Bxc4 {[%clk 0:04:29]} 12. Nxc4 {[%clk 0:04:35.1]} 12... Ba7
{[%clk 0:04:26.8]} 13. Be3 {[%clk 0:04:32.1]} 13... Bxe3 {[%clk 0:04:24.5]} 14.
Nxe3 {[%clk 0:04:30.6]} 14... Qe6 {[%clk 0:04:24.1]} 15. Qa4 {[%clk 0:04:25.5]}
15... Rfe8 {[%clk 0:04:17.9]} 16. Rad1 {[%clk 0:04:22.8]} 16... Rad8 {[%clk
0:04:15.1]} 17. Nc4 {[%clk 0:04:21.7]} 17... d5 {[%clk 0:04:03.1]} 18. exd5
{[%clk 0:04:19.6]} 18... Qxd5 {[%clk 0:04:01.2]} 19. Nh2 {[%clk 0:03:57.2]}
19... Qc5 {[%clk 0:03:49.5]} 20. b4 {[%clk 0:03:54.2]} 20... Qd5 {[%clk
0:03:35.3]} 21. Ne3 {[%clk 0:03:52.9]} 21... Qd7 {[%clk 0:03:31]} 22. Nf3 {[%clk
0:03:51.3]} 22... Qc8 {[%clk 0:03:26.8]} 23. Qb3 {[%clk 0:03:48.7]} 23... e4
{[%clk 0:03:19.7]} 24. dxe4 {[%clk 0:03:47.2]} 24... Nxe4 {[%clk 0:03:17.5]} 25.
Rxd8 {[%clk 0:03:46.7]} 25... Qxd8 {[%clk 0:03:15]} 26. Qc2 {[%clk 0:03:42.5]}
26... Nf6 {[%clk 0:03:09]} 27. Kf1 {[%clk 0:03:34.4]} 27... Re6 {[%clk
0:02:49.9]} 28. Nh4 {[%clk 0:03:25.8]} 28... Qe8 {[%clk 0:02:46.3]} 29. Nhf5
{[%clk 0:03:24.2]} 29... Ne5 {[%clk 0:02:35.1]} 30. Rd1 {[%clk 0:03:22.3]} 30...
Nc6 {[%clk 0:02:29.2]} 31. Qd2 {[%clk 0:03:18.9]} 31... Kh7 {[%clk 0:02:24.8]}
32. Qd3 {[%clk 0:03:17.4]} 32... g6 {[%clk 0:02:23.3]} 33. Ng3 {[%clk
0:03:13.1]} 33... Rd6 {[%clk 0:02:22.3]} 34. Qc2 {[%clk 0:03:11.3]} 34... Rxd1+
{[%clk 0:02:19.1]} 35. Qxd1 {[%clk 0:03:10.7]} 35... Ne4 {[%clk 0:02:12.1]} 36.
Nxe4 {[%clk 0:03:06.7]} 36... Qxe4 {[%clk 0:02:12]} 37. Qd7 {[%clk 0:03:03.6]}
37... Qe7 {[%clk 0:02:06.7]} 38. Qd3 {[%clk 0:03:01.6]} 38... Ne5 {[%clk
0:02:01.8]} 39. Qe4 {[%clk 0:02:59.1]} 39... Nc6 {[%clk 0:01:59.5]} 40. Qd3
{[%clk 0:02:57.7]} 40... Ne5 {[%clk 0:01:58.3]} 41. Qd5 {[%clk 0:02:56.8]} 41...
c6 {[%clk 0:01:55.9]} 42. Qe4 {[%clk 0:02:55.7]} 42... Qd6 {[%clk 0:01:50.5]}
43. g4 {[%clk 0:02:47.6]} 43... Qd3+ {[%clk 0:01:46.1]} 44. Qxd3 {[%clk
0:02:44.9]} 44... Nxd3 {[%clk 0:01:46]} 45. Nc4 {[%clk 0:02:38.9]} 45... Nf4
{[%clk 0:01:43.5]} 46. Nd6 {[%clk 0:02:35.8]} 46... Nxh3 {[%clk 0:01:38.8]} 47.
Nxb7 {[%clk 0:02:34.9]} 47... Nf4 {[%clk 0:01:37.7]} 48. Nc5 {[%clk 0:02:15.8]}
48... Nd5 {[%clk 0:01:34.5]} 49. Nxa6 {[%clk 0:02:14.7]} 49... Nxc3 {[%clk
0:01:33.5]} 50. Nb8 {[%clk 0:02:13.9]} 50... Nb5 {[%clk 0:01:27.6]} 51. Nxc6
{[%clk 0:02:12.8]} 51... Kg7 {[%clk 0:01:25.9]} 52. Ke2 {[%clk 0:02:12.4]} 52...
Kf6 {[%clk 0:01:24.8]} 53. Kd3 {[%clk 0:02:12.1]} 53... Ke6 {[%clk 0:01:23]} 54.
Kc4 {[%clk 0:02:11.3]} 54... Nc7 {[%clk 0:01:22]} 55. b5 {[%clk 0:02:09.4]}
55... Kd6 {[%clk 0:01:19.9]} 56. Nd4 {[%clk 0:02:08.3]} 56... h5 {[%clk
0:01:17.5]} 57. gxh5 {[%clk 0:02:04.3]} 57... gxh5 {[%clk 0:01:16.3]} 58. b6
{[%clk 0:02:03.8]} 58... Ne8 {[%clk 0:01:06.2]} 59. a6 {[%clk 0:02:01.4]} 59...
Nc7 {[%clk 0:00:58.7]} 60. bxc7 {[%clk 0:01:59.6]} 60... Kxc7 {[%clk 0:00:57.8]}
61. Nf5 {[%clk 0:01:56.5]} 61... Kb6 {[%clk 0:00:56.3]} 62. Kd5 {[%clk
0:01:51.5]} 62... Kxa6 {[%clk 0:00:55.4]} 63. Ke5 {[%clk 0:01:51.4]} 63... Kb6
{[%clk 0:00:53.9]} 64. Kf6 {[%clk 0:01:51.2]} 64... Kc5 {[%clk 0:00:53.2]} 65.
Kxf7 {[%clk 0:01:50.9]} 65... Kd5 {[%clk 0:00:52.4]} 66. Kg6 {[%clk 0:01:50.5]}
66... Ke4 {[%clk 0:00:50.1]} 67. Nh4 {[%clk 0:01:48.8]} 67... Kf4 {[%clk
0:00:46.7]} 68. Kxh5 {[%clk 0:01:47.3]} 68... Ke4 {[%clk 0:00:45.4]} 69. Kg5
{[%clk 0:01:46.6]} 69... Ke5 {[%clk 0:00:43.8]} 70. f4+ {[%clk 0:01:46.3]} 1-0

[Event "Live Chess"]
[Site "Chess.com"]
[Date "2024.06.02"]
[Round "-"]
[White "gmnorfolk"]
[Black "KyryloPoluliakh"]
[Result "1-0"]
[WhiteElo "2128"]
[BlackElo "1529"]
[TimeControl "300"]
[EndTime "8:24:04 PDT"]
[Termination "gmnorfolk won by checkmate"]

1. d4 {[%clk 0:04:57.7]} 1... Nf6 {[%clk 0:04:54.5]} 2. Nf3 {[%clk 0:04:54.6]}
2... g6 {[%clk 0:04:53]} 3. Nc3 {[%clk 0:04:50.3]} 3... Bg7 {[%clk 0:04:51.8]}
4. Bf4 {[%clk 0:04:49.7]} 4... O-O {[%clk 0:04:50.7]} 5. h4 {[%clk 0:04:49.3]}
5... h5 {[%clk 0:04:47.7]} 6. Qd2 {[%clk 0:04:48.1]} 6... Re8 {[%clk 0:04:44.6]}
7. Bh6 {[%clk 0:04:46.9]} 7... Bh8 {[%clk 0:04:40.9]} 8. O-O-O {[%clk
0:04:45.5]} 8... a5 {[%clk 0:04:36.9]} 9. e4 {[%clk 0:04:43.7]} 9... Nc6 {[%clk
0:04:35.7]} 10. e5 {[%clk 0:04:42.1]} 10... Nh7 {[%clk 0:04:28.2]} 11. Bd3
{[%clk 0:04:37.8]} 11... Nb4 {[%clk 0:04:22.1]} 12. Bc4 {[%clk 0:04:29.8]} 12...
d6 {[%clk 0:04:16.6]} 13. a3 {[%clk 0:04:21.2]} 13... Nc6 {[%clk 0:04:11.1]} 14.
e6 {[%clk 0:04:17.8]} 14... fxe6 {[%clk 0:04:02.1]} 15. Qd3 {[%clk 0:04:14.2]}
15... Kf7 {[%clk 0:03:55.5]} 16. Ne4 {[%clk 0:04:07]} 16... Rg8 {[%clk
0:03:38.4]} 17. Neg5+ {[%clk 0:04:01.6]} 17... Nxg5 {[%clk 0:03:36.1]} 18. Nxg5+
{[%clk 0:03:59.1]} 18... Ke8 {[%clk 0:03:33.9]} 19. Nxe6 {[%clk 0:03:48]} 19...
Bxe6 {[%clk 0:03:33.2]} 20. Bxe6 {[%clk 0:03:46.6]} 20... Bg7 {[%clk 0:03:19]}
21. Qxg6+ {[%clk 0:03:42.6]} 21... Kf8 {[%clk 0:03:15.5]} 22. Qf7# {[%clk
0:03:41.8]} 1-0

[Event "Live Chess"]
[Site "Chess.com"]
[Date "2024.06.02"]
[Round "-"]
[White "Zhevzh1k7"]
[Black "nitrofish07"]
[Result "0-1"]
[WhiteElo "1128"]
[BlackElo "2099"]
[TimeControl "300"]
[EndTime "8:24:15 PDT"]
[Termination "nitrofish07 won by resignation"]

1. e4 {[%clk 0:04:57.1]} 1... c5 {[%clk 0:04:58.2]} 2. Nf3 {[%clk 0:04:55.7]}
2... d6 {[%clk 0:04:57.5]} 3. d4 {[%clk 0:04:54.4]} 3... cxd4 {[%clk 0:04:57.4]}
4. Nxd4 {[%clk 0:04:53]} 4... Nf6 {[%clk 0:04:56.8]} 5. Nc3 {[%clk 0:04:50.5]}
5... a6 {[%clk 0:04:56]} 6. Bf4 {[%clk 0:04:44]} 6... e5 {[%clk 0:04:54.3]} 7.
Nd5 {[%clk 0:04:28.4]} 7... Nxd5 {[%clk 0:04:44.3]} 8. exd5 {[%clk 0:04:26.5]}
8... exf4 {[%clk 0:04:43.8]} 9. Qe2+ {[%clk 0:04:25]} 9... Qe7 {[%clk
0:04:42.7]} 10. Qxe7+ {[%clk 0:04:18.1]} 10... Bxe7 {[%clk 0:04:42.6]} 11. Bd3
{[%clk 0:04:15.2]} 11... O-O {[%clk 0:04:40.9]} 12. O-O {[%clk 0:04:12.9]} 12...
Bf6 {[%clk 0:04:36.2]} 13. c3 {[%clk 0:04:10.2]} 13... Bxd4 {[%clk 0:04:33.8]}
14. cxd4 {[%clk 0:04:09.9]} 14... Nd7 {[%clk 0:04:33.1]} 15. Rfe1 {[%clk
0:04:08.8]} 15... Nf6 {[%clk 0:04:31.8]} 16. Bc4 {[%clk 0:04:02.4]} 16... Bf5
{[%clk 0:04:30]} 17. Rac1 {[%clk 0:03:54.6]} 17... Rfe8 {[%clk 0:04:28.1]} 18.
Rxe8+ {[%clk 0:03:52.3]} 18... Rxe8 {[%clk 0:04:28]} 19. b3 {[%clk 0:03:49.4]}
19... Rc8 {[%clk 0:04:26]} 20. a4 {[%clk 0:03:45.3]} 20... b5 {[%clk 0:04:23.6]}
21. axb5 {[%clk 0:03:44.3]} 21... axb5 {[%clk 0:04:23.5]} 22. Ra1 {[%clk
0:03:36]} 22... bxc4 {[%clk 0:04:21.2]} 23. bxc4 {[%clk 0:03:35.9]} 23... Rxc4
{[%clk 0:04:19.1]} 24. Ra8+ {[%clk 0:03:33.5]} 24... Rc8 {[%clk 0:04:18.5]} 25.
Rxc8+ {[%clk 0:03:31.9]} 25... Bxc8 {[%clk 0:04:18.4]} 0-1